fUSD/lending_fUSD_20240625
["ID","MTS","AMOUNT","RATE_DAILY","PERIOD"]
[330380773,1719337989109,-3674.69,0.00021643,2]
[330380774,1719337989119,-18533.12,0.00021643,2]
[330380775,1719337989129,-521.43,0.00021643,2]
[330380776,1719337989139,-500.0,0.00021643,2]
[330380777,1719337989150,-500.0,0.00021643,2]
[330380778,1719337989160,-987.45,0.00021643,2]
[330380779,1719337989175,-500.0,0.00021643,2]
[330380780,1719337989188,-1828.54,0.00021643,2]
[330380781,1719337989198,-1060.9,0.00021643,2]
[330380782,1719337989209,-500.0,0.00021643,2]
[330380783,1719337989219,-340.74,0.00021643,2]
[330380784,1719337989229,-1048.33,0.00021643,2]
[330380785,1719337989238,-500.0,0.00021643,2]
[330380786,1719337989248,-3489.35,0.00021643,2]
[330380787,1719337989258,-582.75,0.00021643,2]
[330380788,1719337989269,-506.92444241,0.00021643,2]
[330380789,1719337989279,-50997.71,0.00021643,2]
[330380790,1719337989289,-500.0,0.00021643,2]
[330380791,1719337989298,-7330.4,0.00021643,2]
[330380792,1719337989308,-1090.36,0.00021643,2]
[330380793,1719337989317,-3826.38,0.00021643,2]
[330380794,1719337989327,-588.44,0.00021643,2]
[330380795,1719337989337,-1076.79,0.00021643,2]
[330380796,1719337989347,-875.7,0.00021643,2]
[330380797,1719337989357,-2013.15,0.00021643,2]
[330380798,1719337989367,-1764.68,0.00021643,2]
[330380799,1719337989376,-2546.28,0.00021643,2]
[330380800,1719337989386,-500.0,0.00021643,2]
[330380801,1719337989398,-710.06,0.00021643,2]
[330380802,1719337989408,-1202.57,0.00021643,2]
[330380803,1719337989419,-2661.42,0.00021643,2]
[330380804,1719337989429,-500.0,0.00021643,2]
[330380805,1719337989438,-2226.45,0.00021643,2]
[330380806,1719337989447,-632.99,0.00021643,2]
[330380807,1719337989457,-500.0,0.00021643,2]
[330380808,1719337989466,-575.15,0.00021643,2]
[330380809,1719337989476,-538.22,0.00021643,2]
[330380810,1719337989485,-1320.08,0.00021643,2]
[330380811,1719337989495,-13097.11,0.00021643,2]
[330380812,1719337989505,-500.0,0.00021643,2]
[330380813,1719337989516,-500.0,0.00021643,2]
[330380814,1719337989526,-500.0,0.00021643,2]
[330380815,1719337989536,-1721.67,0.00021643,2]
[330380816,1719337989547,-1003.19,0.00021643,2]
[330380817,1719337989557,-1938.52,0.00021643,2]
[330380818,1719337989567,-2588.15,0.00021643,2]
[330380819,1719337989577,-38471.4,0.00021643,2]
[330380820,1719337989587,-2469.45,0.00021643,2]
[330380821,1719337989596,-7195.96,0.00021643,2]
[330380822,1719337989606,-500.0,0.00021643,2]
[330380823,1719337989616,-3038.22,0.00021643,2]
[330380824,1719337989626,-3163.49,0.00021643,2]
[330380825,1719337989636,-3940.81,0.00021643,2]
[330380826,1719337989645,-500.0,0.00021643,2]
[330380827,1719337989654,-860.82,0.00021643,2]
[330380828,1719337989666,-1243.76,0.00021643,2]
[330380829,1719337989676,-935.24,0.00021643,2]
[330380830,1719337989685,-39156.53,0.00021643,2]
[330380831,1719337989694,-500.0,0.00021643,2]
[330380832,1719337989704,-5532.62,0.00021643,2]
[330380833,1719337989714,-500.0,0.00021643,2]
[330380834,1719337989724,-2133.33,0.00021643,2]
[330380835,1719337989733,-500.0,0.00021643,2]
[330380836,1719337989743,-1003.49,0.00021643,2]
[330380837,1719337989753,-500.0,0.00021643,2]
[330380838,1719337989763,-27639.02,0.00021643,2]
[330380839,1719337989774,-804.85,0.00021643,2]
[330380840,1719337989784,-3599.25,0.00021643,2]
[330380841,1719337989794,-500.0,0.00021643,2]
[330380842,1719337989803,-3089.03,0.00021643,2]
[330380843,1719337989813,-3865.6,0.00021643,2]
[330380844,1719337989823,-1591.79,0.00021643,2]
[330380845,1719337989833,-828.38,0.00021643,2]
[330380846,1719337989843,-13348.12,0.00021643,2]
[330380847,1719337989853,-500.0,0.00021643,2]
[330380848,1719337989862,-19322.86,0.00021643,2]
[330380849,1719337989872,-500.0,0.00021643,2]
[330380850,1719337989883,-3823.25,0.00021643,2]
[330380851,1719337989892,-500.0,0.00021643,2]
[330380852,1719337989902,-2767.76,0.00021643,2]
[330380853,1719337989915,-516.72,0.00021643,2]
[330380854,1719337989925,-2132.96,0.00021643,2]
[330380855,1719337989934,-500.0,0.00021643,2]
[330380856,1719337989944,-829.42,0.00021643,2]
[330380857,1719337989954,-768.12,0.00021643,2]
[330380858,1719337989964,-2051.61,0.00021643,2]
[330380859,1719337989974,-1930.49,0.00021643,2]
[330380860,1719337989984,-1106.84,0.00021643,2]
[330380861,1719337989994,-500.0,0.00021643,2]
[330380862,1719337990004,-3643.02,0.00021643,2]
[330380863,1719337990013,-500.0,0.00021643,2]
[330380864,1719337990023,-2716.1,0.00021643,2]
[330380865,1719337990032,-571.25,0.00021643,2]
[330380866,1719337990042,-500.0,0.00021643,2]
[330380867,1719337990052,-9367.05,0.00021643,2]
[330380868,1719337990062,-500.0,0.00021643,2]
[330380869,1719337990072,-500.0,0.00021643,2]
[330380870,1719337990084,-396.16092862,0.00021643,2]
[330380871,1719337990094,-5116.79,0.00021643,2]
[330380872,1719337990104,-500.0,0.00021643,2]
[330380873,1719337990115,-6152.62,0.00021643,2]
[330380874,1719337990125,-658.03,0.00021643,2]
[330380875,1719337990136,-1026.1,0.00021643,2]
[330380876,1719337990147,-500.0,0.00021643,2]
[330380877,1719337990158,-1640.24,0.00021643,2]
[330380878,1719337990173,-1760.02,0.00021643,2]
[330380879,1719337990186,-500.0,0.00021643,2]
[330380880,1719337990197,-19689.46,0.00021643,2]
[330380881,1719337990207,-500.0,0.00021643,2]
[330380882,1719337990217,-1038.72,0.00021643,2]
[330380883,1719337990229,-3388.45,0.00021643,2]
[330380884,1719337990239,-500.0,0.00021643,2]
[330380885,1719337990249,-500.0,0.00021643,2]
[330380886,1719337990259,-709.2,0.00021643,2]
[330380887,1719337990270,-1249.47,0.00021643,2]
[330380888,1719337990280,-2499.52,0.00021643,2]
[330380889,1719337990291,-20168.94,0.00021643,2]
[330380890,1719337990301,-4133.33,0.00021643,2]
[330380891,1719337990312,-991.31,0.00021643,2]
[330380892,1719337990322,-500.0,0.00021643,2]
[330380893,1719337990332,-16464.04,0.00021643,2]
[330380894,1719337990343,-2511.23,0.00021643,2]
[330380895,1719337990353,-1636.71,0.00021643,2]
[330380896,1719337990364,-500.0,0.00021643,2]
[330380897,1719337990374,-1279.93,0.00021643,2]
[330380898,1719337990384,-500.0,0.00021643,2]
[330380899,1719337990395,-813.02,0.00021643,2]
[330380900,1719337990405,-711.6,0.00021643,2]
[330380901,1719337990422,-867.36,0.00021643,2]
[330380902,1719337990433,-635.3,0.00021643,2]
[330380903,1719337990442,-4519.25,0.00021643,2]
[330380904,1719337990452,-984.69,0.00021643,2]
[330380905,1719337990462,-2863.52,0.00021643,2]
[330380906,1719337990472,-1078.44,0.00021643,2]
[330380907,1719337990482,-579.91,0.00021643,2]
[330380908,1719337990492,-1635.81,0.00021643,2]
[330380909,1719337990502,-894.63,0.00021643,2]
[330380910,1719337990511,-511.61,0.00021643,2]
[330380911,1719337990521,-6876.69,0.00021643,2]
[330380912,1719337990530,-724.58,0.00021643,2]
[330380913,1719337990540,-770.48,0.00021643,2]
[330380914,1719337990549,-500.0,0.00021643,2]
[330380915,1719337990559,-500.0,0.00021643,2]
[330380916,1719337990569,-1778.16,0.00021643,2]
[330380917,1719337990578,-2214.33,0.00021643,2]
[330380918,1719337990588,-627.16,0.00021643,2]
[330380919,1719337990598,-12811.41,0.00021643,2]
[330380920,1719337990607,-500.0,0.00021643,2]
[330380921,1719337990617,-1194.74,0.00021643,2]
[330380922,1719337990627,-952.48,0.00021643,2]
[330380923,1719337990637,-250.0,0.00021643,2]
[330380924,1719337990647,-646.01,0.00021643,2]
[330380925,1719337990657,-500.0,0.00021643,2]
[330380926,1719337990668,-533.6,0.00021643,2]
[330380927,1719337990677,-1023.86,0.00021643,2]
[330380928,1719337990687,-6829.1,0.00021643,2]
[330380929,1719337990696,-8218.06,0.00021643,2]
[330380930,1719337990706,-500.0,0.00021643,2]
[330380931,1719337990716,-500.0,0.00021643,2]
[330380932,1719337990725,-2323.75,0.00021643,2]
[330380933,1719337990735,-539.11,0.00021643,2]
[330380934,1719337990744,-1807.94,0.00021643,2]
[330380935,1719337990754,-11065.02,0.00021643,2]
[330380936,1719337990763,-1104.07,0.00021643,2]
[330380937,1719337990773,-663.89,0.00021643,2]
[330380938,1719337990783,-600.35,0.00021643,2]
[330380939,1719337990792,-501.0,0.00021643,2]
[330380940,1719337990802,-1481.84,0.00021643,2]
[330380941,1719337990812,-522.35,0.00021643,2]
[330380942,1719337990822,-661.17,0.00021643,2]
[330380943,1719337990832,-500.0,0.00021643,2]
[330380944,1719337990841,-5478.65,0.00021643,2]
[330380945,1719337990851,-3657.63,0.00021643,2]
[330380946,1719337990861,-886.73,0.00021643,2]
[330380947,1719337990871,-1680.53,0.00021643,2]
[330380948,1719337990881,-10088.1,0.00021643,2]
[330380949,1719337990891,-2543.7,0.00021643,2]
[330380950,1719337990901,-475.32,0.00021643,2]
[330380951,1719337990910,-2456.25,0.00021643,2]
[330380952,1719337990923,-1656.09,0.00021643,2]
[330380953,1719337990931,-3868.22,0.00021643,2]
[330380954,1719337990941,-2328.62,0.00021643,2]
[330380955,1719337990950,-1796.89,0.00021643,2]
[330380956,1719337990959,-500.0,0.00021643,2]
[330380957,1719337990969,-4014.66,0.00021643,2]
[330380958,1719337990978,-500.0,0.00021643,2]
[330380959,1719337990988,-7129.8,0.00021643,2]
[330380960,1719337990998,-500.0,0.00021643,2]
[330380961,1719337991007,-3567.64,0.00021643,2]
[330380962,1719337991017,-914.75,0.00021643,2]
[330380963,1719337991027,-500.0,0.00021643,2]
[330380964,1719337991037,-1821.82,0.00021643,2]
[330380965,1719337991046,-2063.73,0.00021643,2]
[330380966,1719337991056,-1475.68,0.00021643,2]
[330380967,1719337991065,-500.0,0.00021643,2]
[330380968,1719337991075,-546.57,0.00021643,2]
[330380969,1719337991085,-500.0,0.00021643,2]
[330380970,1719337991094,-397.40710384,0.00021643,2]
[330380971,1719337991104,-750.23,0.00021643,2]
[330380972,1719337991114,-559.73,0.00021643,2]
[330380973,1719337991123,-500.0,0.00021643,2]
[330380974,1719337991133,-500.0,0.00021643,2]
[330380975,1719337991142,-3434.69,0.00021643,2]
[330380976,1719337991152,-500.0,0.00021643,2]
[330380977,1719337991161,-14507.85,0.00021643,2]
[330380978,1719337991172,-2198.32,0.00021643,2]
[330380979,1719337991188,-1011.11,0.00021643,2]
[330380980,1719337991197,-1316.74,0.00021643,2]
[330380981,1719337991207,-500.0,0.00021643,2]
[330380982,1719337991217,-887.9,0.00021643,2]
[330380983,1719337991228,-38249.94,0.00021643,2]
[330380984,1719337991238,-500.0,0.00021643,2]
[330380985,1719337991249,-697.9,0.00021643,2]
[330380986,1719337991259,-1003.68,0.00021643,2]
[330380987,1719337991270,-500.0,0.00021643,2]
[330380988,1719337991280,-500.0,0.00021643,2]
[330380989,1719337991289,-500.0,0.00021643,2]
[330380990,1719337991403,-540.91591667,0.00021643,2]
[330380991,1719337991412,-500.0,0.00021643,2]
[330380992,1719337991424,-27014.67,0.00021643,2]
[330380993,1719337991434,-1550.6,0.00021643,2]
[330380994,1719337991443,-1975.91,0.00021643,2]
[330380995,1719337991452,-4800.32,0.00021643,2]
[330380996,1719337991464,-500.0,0.00021643,2]
[330380997,1719337991473,-500.0,0.00021643,2]
[330380998,1719337991483,-726.31,0.00021643,2]
[330380999,1719337991493,-1230.61,0.00021643,2]
[330381000,1719337991502,-1578.23,0.00021643,2]
[330381001,1719337991512,-500.0,0.00021643,2]
[330381002,1719337991522,-500.0,0.00021643,2]
[330381003,1719337991532,-500.0,0.00021643,2]
[330381004,1719337991541,-500.0,0.00021643,2]
[330381005,1719337991550,-3087.64,0.00021643,2]
[330381006,1719337991560,-500.0,0.00021643,2]
[330381007,1719337991569,-1806.83,0.00021643,2]
[330381008,1719337991579,-500.0,0.00021643,2]
[330381009,1719337991588,-3280.0,0.00021643,2]
[330381010,1719337991598,-1791.93,0.00021643,2]
[330381011,1719337991607,-679.84,0.00021643,2]
[330381012,1719337991617,-500.0,0.00021643,2]
[330381013,1719337991626,-858.99,0.00021643,2]
[330381014,1719337991635,-874.77,0.00021643,2]
[330381015,1719337991644,-3522.11,0.00021643,2]
[330381016,1719337991654,-709.69,0.00021643,2]
[330381017,1719337991666,-500.0,0.00021643,2]
[330381018,1719337991675,-1076.73,0.00021643,2]
[330381019,1719337991684,-587.49,0.00021643,2]
[330381020,1719337991693,-500.0,0.00021643,2]
[330381021,1719337991703,-500.0,0.00021643,2]
[330381022,1719337991712,-17618.37,0.00021643,2]
[330381023,1719337991722,-2768.81,0.00021643,2]
[330381024,1719337991731,-1531.05,0.00021643,2]
[330381025,1719337991740,-500.0,0.00021643,2]
[330381026,1719337991749,-588.37,0.00021643,2]
[330381027,1719337991759,-9360.45,0.00021643,2]
[330381028,1719337991768,-654.5,0.00021643,2]
[330381029,1719337991778,-2960.82,0.00021643,2]
[330381030,1719337991788,-1310.42,0.00021643,2]
[330381031,1719337991798,-500.0,0.00021643,2]
[330381032,1719337991808,-500.0,0.00021643,2]
[330381033,1719337991817,-2408.83,0.00021643,2]
[330381034,1719337991827,-3587.57,0.00021643,2]
[330381035,1719337991836,-3984.57,0.00021643,2]
[330381036,1719337991846,-799.95,0.00021643,2]
[330381037,1719337991856,-4130.12,0.00021643,2]
[330381038,1719337991866,-1063.93,0.00021643,2]
[330381039,1719337991875,-1748.04,0.00021643,2]
[330381040,1719337991885,-500.0,0.00021643,2]
[330381041,1719337991895,-792.5,0.00021643,2]
[330381042,1719337991905,-550.72,0.00021643,2]
[330381043,1719337991914,-10614.48,0.00021643,2]
[330381044,1719337991924,-3298.16,0.00021643,2]
[330381045,1719337991933,-1468.33,0.00021643,2]
[330381046,1719337991943,-500.0,0.00021643,2]
[330381047,1719337991952,-5401.34,0.00021643,2]
[330381048,1719337991962,-1075.13,0.00021643,2]
[330381049,1719337991972,-1746.97,0.00021643,2]
[330381050,1719337991982,-12850.46,0.00021643,2]
[330381051,1719337991992,-500.0,0.00021643,2]
[330381052,1719337992001,-3728.91,0.00021643,2]
[330381053,1719337992011,-1619.57,0.00021643,2]
[330381054,1719337992021,-533.36,0.00021643,2]
[330381055,1719337992031,-500.0,0.00021643,2]
[330381056,1719337992040,-765.33,0.00021643,2]
[330381057,1719337992049,-687.55,0.00021643,2]
[330381058,1719337992059,-6211.69,0.00021643,2]
[330381059,1719337992069,-1253.15,0.00021643,2]
[330381060,1719337992079,-500.0,0.00021643,2]
[330381061,1719337992089,-3214.85,0.00021643,2]
[330381062,1719337992100,-1196.83,0.00021643,2]
[330381063,1719337992109,-1014.47,0.00021643,2]
[330381064,1719337992121,-1365.93,0.00021643,2]
[330381065,1719337992131,-2068.49,0.00021643,2]
[330381066,1719337992141,-3277.71,0.00021643,2]
[330381067,1719337992152,-2994.62,0.00021643,2]
[330381068,1719337992162,-4078.1,0.00021643,2]
[330381069,1719337992175,-500.0,0.00021643,2]
[330381070,1719337992186,-4726.64,0.00021643,2]
[330381071,1719337992200,-500.0,0.00021643,2]
[330381072,1719337992210,-5216.67,0.00021643,2]
[330381073,1719337992219,-790.4,0.00021643,2]
[330381074,1719337992229,-1482.28,0.00021643,2]
[330381075,1719337992239,-1436.06,0.00021643,2]
[330381076,1719337992248,-500.0,0.00021643,2]
[330381077,1719337992257,-686.96,0.00021643,2]
[330381078,1719337992268,-500.0,0.00021643,2]
[330381079,1719337992278,-1827.73,0.00021643,2]
[330381080,1719337992288,-500.0,0.00021643,2]
[330381081,1719337992298,-3074.5,0.00021643,2]
[330381082,1719337992308,-500.0,0.00021643,2]
[330381083,1719337992317,-309.01,0.00021644,2]
[330381084,1719337992327,-158.16,0.00021644,2]
[330381085,1719337992336,-358.6,0.00021644,2]
[330381086,1719337992346,-151.0,0.00021796,2]
[330381087,1719337992355,-1000.0,0.00021841,2]
[330381088,1719337992365,-239.69433493,0.00021917,2]
[330381089,1719337992374,-2500.0,0.00021917,3]
[330381090,1719337992383,-500.0,0.00021917,2]
[330381091,1719337992395,-500.0,0.00021917,2]
[330381092,1719337992404,-500.0,0.00021917,2]
[330381093,1719337992415,-500.0,0.00021917,2]
[330381094,1719337992424,-201.48536048,0.00021917,2]
[330381095,1719337992434,-1041.25,0.00021917,2]
[330381096,1719337992443,-746.42,0.00021917,2]
[330381097,1719337992453,-867.14,0.00021917,2]
[330381098,1719337992462,-751.61,0.00021917,2]
[330381099,1719337992471,-500.0,0.00021917,2]
[330381100,1719337992480,-1356.99,0.00021917,2]
[330381101,1719337992489,-1175.6,0.00021917,2]
[330381102,1719337992498,-500.0,0.00021917,2]
[330381103,1719337992507,-1372.16,0.00021917,2]
[330381104,1719337992516,-2625.16,0.00021917,2]
[330381105,1719337992525,-1523.16,0.00021917,2]
[330381106,1719337992535,-531.38,0.00021917,2]
[330381107,1719337992544,-761.88,0.00021917,2]
[330381108,1719337992553,-983.79,0.00021917,2]
[330381109,1719337992562,-1492.67,0.00021917,2]
[330381110,1719337992571,-638.84,0.00021917,2]
[330381111,1719337992581,-1515.14,0.00021917,2]
[330381112,1719337992590,-1556.79,0.00021917,2]
[330381113,1719337992599,-785.12,0.00021917,2]
[330381114,1719337992609,-617.17,0.00021917,2]
[330381115,1719337992619,-865.89,0.00021917,2]
[330381116,1719337992628,-1076.26,0.00021917,2]
[330381117,1719337992638,-617.83585588,0.00021917,2]
[330381118,1719337992647,-1752.72,0.00021917,2]
[330381119,1719337992657,-554.99,0.00021917,2]
[330381120,1719337992667,-500.0,0.00021917,2]
[330381121,1719337992676,-1673.1,0.00021917,2]
[330381122,1719337992685,-500.0,0.00021917,2]
[330381123,1719337992694,-1196.42,0.00021917,2]
[330381124,1719337992703,-500.0,0.00021917,2]
[330381125,1719337992712,-546.0,0.00021917,2]
[330381126,1719337992722,-500.0,0.00021917,2]
[330381127,1719337992731,-500.0,0.00021917,2]
[330381128,1719337992740,-1230.45,0.00021917,2]
[330381129,1719337992750,-1638.27,0.00021917,2]
[330381130,1719337992759,-721.81,0.00021917,2]
[330381131,1719337992768,-500.0,0.00021917,2]
[330381132,1719337992778,-916.29,0.00021917,2]
[330381133,1719337992788,-1110.71,0.00021917,2]
[330381134,1719337992797,-1305.49,0.00021917,2]
[330381135,1719337992806,-813.41,0.00021917,2]
[330381136,1719337992815,-500.0,0.00021917,2]
[330381137,1719337992825,-738.2,0.00021917,2]
[330381138,1719337992834,-629.35,0.00021917,2]
[330381139,1719337992843,-500.0,0.00021917,2]
[330381140,1719337992853,-2096.31,0.00021917,2]
[330381141,1719337992862,-2936.53,0.00021917,2]
[330381142,1719337992872,-500.0,0.00021917,2]
[330381143,1719337992882,-500.0,0.00021917,2]
[330381144,1719337992891,-500.0,0.00021917,2]
[330381145,1719337992901,-500.0,0.00021917,2]
[330381146,1719337992910,-717.21,0.00021917,2]
[330381147,1719337992922,-759.42,0.00021917,2]
[330381148,1719337992932,-524.13,0.00021917,2]
[330381149,1719337992941,-598.1,0.00021917,2]
[330381150,1719337992950,-500.0,0.00021917,2]
[330381151,1719337992960,-589.92,0.00021917,2]
[330381152,1719337992969,-971.03,0.00021917,2]
[330381153,1719337992979,-675.22,0.00021917,2]
[330381154,1719337992989,-206.97,0.00021917,2]
[330381155,1719337992999,-500.0,0.00021917,2]
[330381156,1719337993008,-206.97,0.00021917,2]
[330381157,1719337993019,-206.97,0.00021917,2]
[330381158,1719337993029,-206.97,0.00021917,2]
[330381159,1719337993039,-206.97,0.00021917,2]
[330381160,1719337993048,-905.04,0.00021917,2]
[330381161,1719337993057,-206.97,0.00021917,2]
[330381162,1719337993067,-669.2,0.00021917,2]
[330381163,1719337993076,-206.97,0.00021917,2]
[330381164,1719337993085,-206.97,0.00021917,2]
[330381165,1719337993094,-1247.28,0.00021917,2]
[330381166,1719337993104,-206.97,0.00021917,2]
[330381167,1719337993113,-206.97,0.00021917,2]
[330381168,1719337993122,-206.97,0.00021917,2]
[330381169,1719337993132,-1109.18,0.00021917,2]
[330381170,1719337993141,-500.0,0.00021917,2]
[330381171,1719337993151,-500.0,0.00021917,2]
[330381172,1719337993160,-500.0,0.00021917,2]
[330381173,1719337993172,-1096.34,0.00021917,2]
[330381174,1719337993182,-1550.19,0.00021917,2]
[330381175,1719337993195,-500.0,0.00021917,2]
[330381176,1719337993204,-757.11,0.00021917,2]
[330381177,1719337993214,-1826.94,0.00021917,2]
[330381178,1719337993224,-773.72,0.00021917,2]
[330381179,1719337993233,-500.0,0.00021917,2]
[330381180,1719337993242,-1728.25,0.00021917,2]
[330381181,1719337993251,-973.7,0.00021917,2]
[330381182,1719337993261,-773.97,0.00021917,2]
[330381183,1719337993273,-1154.02,0.00021917,2]
[330381184,1719337993282,-1784.58,0.00021917,2]
[330381185,1719337993291,-658.68,0.00021917,2]
[330381186,1719337993301,-525.47,0.00021917,2]
[330381187,1719337993310,-500.0,0.00021917,2]
[330381188,1719337993319,-894.86,0.00021917,2]
[330381189,1719337993329,-1106.26,0.00021917,2]
[330381190,1719337993338,-556.82,0.00021917,2]
[330381191,1719337993347,-1088.59,0.00021917,2]
[330381192,1719337993357,-500.0,0.00021917,2]
[330381193,1719337993368,-1061.87,0.00021917,2]
[330381194,1719337993377,-1519.41,0.00021917,2]
[330381195,1719337993387,-1886.29,0.00021917,2]
[330381196,1719337993399,-671.23,0.00021917,2]
[330381197,1719337993409,-842.01,0.00021917,2]
[330381198,1719337993420,-848.32,0.00021917,2]
[330381199,1719337993430,-232.45616,0.00021917,2]
[330381200,1719337993439,-571.84,0.00021917,2]
[330381201,1719337993448,-547.07,0.00021917,2]
[330381202,1719337993458,-1275.37,0.00021917,2]
[330381203,1719337993468,-708.32,0.00021917,2]
[330381204,1719337993477,-241.89602445,0.00021917,2]
[330381205,1719337993487,-545.35,0.00021917,2]
[330381206,1719337993496,-500.0,0.00021917,2]
[330381207,1719337993506,-1199.18,0.00021917,2]
[330381208,1719337993515,-500.0,0.00021917,2]
[330381209,1719337993525,-2554.0,0.00021917,2]
[330381210,1719337993535,-500.0,0.00021917,2]
[330381211,1719337993544,-896.63,0.00021917,2]
[330381212,1719337993553,-1510.6,0.00021917,2]
[330381213,1719337993563,-899.64,0.00021917,2]
[330381214,1719337993572,-678.52,0.00021917,2]
[330381215,1719337993581,-2297.51,0.00021917,2]
[330381216,1719337993590,-500.0,0.00021917,2]
[330381217,1719337993600,-500.0,0.00021917,2]
[330381218,1719337993610,-706.8,0.00021917,2]
[330381219,1719337993619,-500.0,0.00021917,2]
[330381220,1719337993628,-595.57811916,0.00021917,2]
[330381221,1719337993637,-500.0,0.00021917,2]
[330381222,1719337993647,-2864.14,0.00021917,2]
[330381223,1719337993656,-500.0,0.00021917,2]
[330381224,1719337993666,-500.0,0.00021917,2]
[330381225,1719337993676,-767.35,0.00021917,2]
[330381226,1719337993685,-500.0,0.00021917,2]
[330381227,1719337993695,-1219.8,0.00021917,2]
[330381228,1719337993704,-817.0,0.00021917,2]
[330381229,1719337993714,-602.68,0.00021917,2]
[330381230,1719337993723,-500.0,0.00021917,2]
[330381231,1719337993732,-750.73,0.00021917,2]
[330381232,1719337993742,-983.23,0.00021917,2]
[330381233,1719337993751,-2190.09,0.00021917,2]
[330381234,1719337993761,-1053.59,0.00021917,2]
[330381235,1719337993770,-500.0,0.00021917,2]
[330381236,1719337993779,-1755.84,0.00021917,2]
[330381237,1719337993788,-502.66,0.00021917,2]
[330381238,1719337993797,-811.39,0.00021917,2]
[330381239,1719337993806,-500.0,0.00021917,2]
[330381240,1719337993815,-1075.29,0.00021917,2]
[330381241,1719337993825,-1534.29,0.00021917,2]
[330381242,1719337993834,-1408.46,0.00021917,2]
[330381243,1719337993843,-545.9,0.00021917,2]
[330381244,1719337993852,-721.67,0.00021917,2]
[330381245,1719337993861,-881.26,0.00021917,2]
[330381246,1719337993870,-534.79526715,0.00021917,2]
[330381247,1719337993879,-1154.57,0.00021917,2]
[330381248,1719337993889,-1299.57,0.00021917,2]
[330381249,1719337993898,-500.0,0.00021917,2]
[330381250,1719337993907,-764.04,0.00021917,2]
[330381251,1719337993918,-561.35,0.00021917,2]
[330381252,1719337993926,-2576.08,0.00021917,2]
[330381253,1719337993935,-500.0,0.00021917,2]
[330381254,1719337993944,-500.0,0.00021917,2]
[330381255,1719337993953,-500.0,0.00021917,2]
[330381256,1719337993962,-1230.16,0.00021917,2]
[330381257,1719337993972,-500.0,0.00021917,2]
[330381258,1719337993981,-1956.39,0.00021917,2]
[330381259,1719337993991,-947.68,0.00021917,2]
[330381260,1719337994000,-654.42,0.00021917,2]
[330381261,1719337994010,-2524.99,0.00021917,2]
[330381262,1719337994019,-947.4,0.00021917,2]
[330381263,1719337994028,-1606.65,0.00021917,2]
[330381264,1719337994037,-500.0,0.00021917,2]
[330381265,1719337994047,-1554.23,0.00021917,2]
[330381266,1719337994057,-754.05,0.00021917,2]
[330381267,1719337994066,-526.12,0.00021917,2]
[330381268,1719337994076,-553.36,0.00021917,2]
[330381269,1719337994085,-500.0,0.00021917,2]
[330381270,1719337994095,-500.0,0.00021917,2]
[330381271,1719337994104,-500.0,0.00021917,2]
[330381272,1719337994114,-500.0,0.00021917,2]